{"text_format":"3","workbook":"xlsx","n_sheets":3,"sheets":["Jadwal Harian","Penjadwal Acara","Jangka Waktu"],"not_rendered":{"images":1,"defined_names":21},"read":"whole","date_system":"1900"}

{"sheet":"Jadwal Harian","index":0,"n_rows":75,"n_cols":13,"rows_kept":75,"merged":[[1,1,5,2],[2,12,4,12],[3,7,4,7],[5,12,7,12],[6,1,8,2],[8,12,10,12],[9,7,10,7],[10,1,10,2],[11,12,13,12],[14,12,16,12],[15,7,16,7],[17,12,19,12],[18,1,18,2],[20,12,22,12],[21,7,22,7],[23,12,25,12],[25,1,25,2],[26,7,27,7],[26,12,28,12],[29,12,31,12],[31,7,32,7],[32,12,34,12]]}
[null,"Jadwal Harian"]
[null,{"$f":"IFERROR(DAY(NilaiTanggal),\"\")","v":6},null,null,"Waktu",{"$f":"IFERROR(UPPER(TEXT(DATE(TahunLaporan,JumlahBulan,HariLaporan),\"dd mmmm yyyy\")),\"\")","v":"06 SEPTEMBER 2019"},null,"SEMINGGU DALAM SEKILAS",{"$nulls":3},"CATATAN / DAFTAR TUGAS"]
[{"$nulls":4},{"$f":"'Jangka Waktu'!E3","v":"06:00:00"},{"$f":"IFERROR(INDEX(PengaturJadwalAcara[],MATCH(DATEVALUE(NilaiTanggal)&JadwalHarian[[#This Row],[Waktu]],CariTanggalDanWaktu,0),3),\"\")","v":"Bangun"},null,{"$f":"IFERROR(TEXT(DATEVALUE(NilaiTanggal)+1,\"dddd\"),\"\")","v":"Sabtu"},{"$f":"IFERROR(INDEX(PengaturJadwalAcara[],MATCH($H$6&\"|\"&ROW(A1),PengaturJadwalAcara[NILAI UNIK (DIHITUNG)],0),2),\"\")","v":"06:30:00"},{"$f":"IFERROR(INDEX(PengaturJadwalAcara[],MATCH($H$6&\"|\"&ROW(A1),PengaturJadwalAcara[NILAI UNIK (DIHITUNG)],0),3),\"\")","v":"Sarapan"},null,null,"Ambil cucian dry cleaning"]
[{"$nulls":4},{"$f":"'Jangka Waktu'!E4","v":"06:15:00"},{"$f":"IFERROR(INDEX(PengaturJadwalAcara[],MATCH(DATEVALUE(NilaiTanggal)&JadwalHarian[[#This Row],[Waktu]],CariTanggalDanWaktu,0),3),\"\")","v":""},null,{"$f":"IFERROR(TEXT(DATEVALUE(NilaiTanggal)+1,\"d\"),\"\")","v":"7"},{"$f":"IFERROR(INDEX(PengaturJadwalAcara[],MATCH($H$6&\"|\"&ROW(A2),PengaturJadwalAcara[NILAI UNIK (DIHITUNG)],0),2),\"\")","v":"07:30:00"},{"$f":"IFERROR(INDEX(PengaturJadwalAcara[],MATCH($H$6&\"|\"&ROW(A2),PengaturJadwalAcara[NILAI UNIK (DIHITUNG)],0),3),\"\")","v":"Berangkat kerja"}]
[{"$nulls":4},{"$f":"'Jangka Waktu'!E5","v":"06:30:00"},{"$f":"IFERROR(INDEX(PengaturJadwalAcara[],MATCH(DATEVALUE(NilaiTanggal)&JadwalHarian[[#This Row],[Waktu]],CariTanggalDanWaktu,0),3),\"\")","v":"Mandi"},null,null,{"$f":"IFERROR(INDEX(PengaturJadwalAcara[],MATCH($H$6&\"|\"&ROW(A3),PengaturJadwalAcara[NILAI UNIK (DIHITUNG)],0),2),\"\")","v":""},{"$f":"IFERROR(INDEX(PengaturJadwalAcara[],MATCH($H$6&\"|\"&ROW(A3),PengaturJadwalAcara[NILAI UNIK (DIHITUNG)],0),3),\"\")","v":""}]
[{"$nulls":4},{"$f":"'Jangka Waktu'!E6","v":"06:45:00"},{"$f":"IFERROR(INDEX(PengaturJadwalAcara[],MATCH(DATEVALUE(NilaiTanggal)&JadwalHarian[[#This Row],[Waktu]],CariTanggalDanWaktu,0),3),\"\")","v":""},null,{"$f":"IFERROR(NilaiTanggal+1,\"\")","v":"2019-09-07"},{"$f":"IFERROR(INDEX(PengaturJadwalAcara[],MATCH($H$6&\"|\"&ROW(A4),PengaturJadwalAcara[NILAI UNIK (DIHITUNG)],0),2),\"\")","v":""},{"$f":"IFERROR(INDEX(PengaturJadwalAcara[],MATCH($H$6&\"|\"&ROW(A4),PengaturJadwalAcara[NILAI UNIK (DIHITUNG)],0),3),\"\")","v":""},null,null,"Hubungi perusahaan kabel"]
[null,{"$f":"IFERROR(TEXT(NilaiTanggal,\"dddd\"),\"\")","v":"Jumat"},null,null,{"$f":"'Jangka Waktu'!E7","v":"07:00:00"},{"$f":"IFERROR(INDEX(PengaturJadwalAcara[],MATCH(DATEVALUE(NilaiTanggal)&JadwalHarian[[#This Row],[Waktu]],CariTanggalDanWaktu,0),3),\"\")","v":""},null,null,{"$f":"IFERROR(INDEX(PengaturJadwalAcara[],MATCH($H$6&\"|\"&ROW(A5),PengaturJadwalAcara[NILAI UNIK (DIHITUNG)],0),2),\"\")","v":""},{"$f":"IFERROR(INDEX(PengaturJadwalAcara[],MATCH($H$6&\"|\"&ROW(A5),PengaturJadwalAcara[NILAI UNIK (DIHITUNG)],0),3),\"\")","v":""}]
[{"$nulls":4},{"$f":"'Jangka Waktu'!E8","v":"07:15:00"},{"$f":"IFERROR(INDEX(PengaturJadwalAcara[],MATCH(DATEVALUE(NilaiTanggal)&JadwalHarian[[#This Row],[Waktu]],CariTanggalDanWaktu,0),3),\"\")","v":""},null,null,{"$f":"IFERROR(INDEX(PengaturJadwalAcara[],MATCH($H$6&\"|\"&ROW(A6),PengaturJadwalAcara[NILAI UNIK (DIHITUNG)],0),2),\"\")","v":""},{"$f":"IFERROR(INDEX(PengaturJadwalAcara[],MATCH($H$6&\"|\"&ROW(A6),PengaturJadwalAcara[NILAI UNIK (DIHITUNG)],0),3),\"\")","v":""}]
[{"$nulls":4},{"$f":"'Jangka Waktu'!E9","v":"07:30:00"},{"$f":"IFERROR(INDEX(PengaturJadwalAcara[],MATCH(DATEVALUE(NilaiTanggal)&JadwalHarian[[#This Row],[Waktu]],CariTanggalDanWaktu,0),3),\"\")","v":"Berangkat kerja"},null,{"$f":"IFERROR(TEXT(DATEVALUE(NilaiTanggal)+2,\"dddd\"),\"\")","v":"Minggu"},{"$f":"IFERROR(INDEX(PengaturJadwalAcara[],MATCH($H$12&\"|\"&ROW(A1),PengaturJadwalAcara[NILAI UNIK (DIHITUNG)],0),2),\"\")","v":""},{"$f":"IFERROR(INDEX(PengaturJadwalAcara[],MATCH($H$12&\"|\"&ROW(A1),PengaturJadwalAcara[NILAI UNIK (DIHITUNG)],0),3),\"\")","v":""}]
[{"$nulls":4},{"$f":"'Jangka Waktu'!E10","v":"07:45:00"},{"$f":"IFERROR(INDEX(PengaturJadwalAcara[],MATCH(DATEVALUE(NilaiTanggal)&JadwalHarian[[#This Row],[Waktu]],CariTanggalDanWaktu,0),3),\"\")","v":""},null,{"$f":"IFERROR(TEXT(DATEVALUE(NilaiTanggal)+2,\"d\"),\"\")","v":"8"},{"$f":"IFERROR(INDEX(PengaturJadwalAcara[],MATCH($H$12&\"|\"&ROW(A2),PengaturJadwalAcara[NILAI UNIK (DIHITUNG)],0),2),\"\")","v":""},{"$f":"IFERROR(INDEX(PengaturJadwalAcara[],MATCH($H$12&\"|\"&ROW(A2),PengaturJadwalAcara[NILAI UNIK (DIHITUNG)],0),3),\"\")","v":""}]
[null,"TAMPILKAN JADWAL",null,null,{"$f":"'Jangka Waktu'!E11","v":"08:00:00"},{"$f":"IFERROR(INDEX(PengaturJadwalAcara[],MATCH(DATEVALUE(NilaiTanggal)&JadwalHarian[[#This Row],[Waktu]],CariTanggalDanWaktu,0),3),\"\")","v":"Mulai sif kerja"},null,null,{"$f":"IFERROR(INDEX(PengaturJadwalAcara[],MATCH($H$12&\"|\"&ROW(A3),PengaturJadwalAcara[NILAI UNIK (DIHITUNG)],0),2),\"\")","v":""},{"$f":"IFERROR(INDEX(PengaturJadwalAcara[],MATCH($H$12&\"|\"&ROW(A3),PengaturJadwalAcara[NILAI UNIK (DIHITUNG)],0),3),\"\")","v":""}]
[{"$nulls":4},{"$f":"'Jangka Waktu'!E12","v":"08:15:00"},{"$f":"IFERROR(INDEX(PengaturJadwalAcara[],MATCH(DATEVALUE(NilaiTanggal)&JadwalHarian[[#This Row],[Waktu]],CariTanggalDanWaktu,0),3),\"\")","v":""},null,{"$f":"IFERROR(NilaiTanggal+2,\"\")","v":"2019-09-08"},{"$f":"IFERROR(INDEX(PengaturJadwalAcara[],MATCH($H$12&\"|\"&ROW(A4),PengaturJadwalAcara[NILAI UNIK (DIHITUNG)],0),2),\"\")","v":""},{"$f":"IFERROR(INDEX(PengaturJadwalAcara[],MATCH($H$12&\"|\"&ROW(A4),PengaturJadwalAcara[NILAI UNIK (DIHITUNG)],0),3),\"\")","v":""}]
[null,"Tahun",null,null,{"$f":"'Jangka Waktu'!E13","v":"08:30:00"},{"$f":"IFERROR(INDEX(PengaturJadwalAcara[],MATCH(DATEVALUE(NilaiTanggal)&JadwalHarian[[#This Row],[Waktu]],CariTanggalDanWaktu,0),3),\"\")","v":""},null,null,{"$f":"IFERROR(INDEX(PengaturJadwalAcara[],MATCH($H$12&\"|\"&ROW(A5),PengaturJadwalAcara[NILAI UNIK (DIHITUNG)],0),2),\"\")","v":""},{"$f":"IFERROR(INDEX(PengaturJadwalAcara[],MATCH($H$12&\"|\"&ROW(A5),PengaturJadwalAcara[NILAI UNIK (DIHITUNG)],0),3),\"\")","v":""}]
[{"$nulls":4},{"$f":"'Jangka Waktu'!E14","v":"08:45:00"},{"$f":"IFERROR(INDEX(PengaturJadwalAcara[],MATCH(DATEVALUE(NilaiTanggal)&JadwalHarian[[#This Row],[Waktu]],CariTanggalDanWaktu,0),3),\"\")","v":""},null,null,{"$f":"IFERROR(INDEX(PengaturJadwalAcara[],MATCH($H$12&\"|\"&ROW(A6),PengaturJadwalAcara[NILAI UNIK (DIHITUNG)],0),2),\"\")","v":""},{"$f":"IFERROR(INDEX(PengaturJadwalAcara[],MATCH($H$12&\"|\"&ROW(A6),PengaturJadwalAcara[NILAI UNIK (DIHITUNG)],0),3),\"\")","v":""}]
[null,"Bulan",null,null,{"$f":"'Jangka Waktu'!E15","v":"09:00:00"},{"$f":"IFERROR(INDEX(PengaturJadwalAcara[],MATCH(DATEVALUE(NilaiTanggal)&JadwalHarian[[#This Row],[Waktu]],CariTanggalDanWaktu,0),3),\"\")","v":""},null,{"$f":"IFERROR(TEXT(DATEVALUE(NilaiTanggal)+3,\"dddd\"),\"\")","v":"Senin"},{"$f":"IFERROR(INDEX(PengaturJadwalAcara[],MATCH($H$18&\"|\"&ROW(A1),PengaturJadwalAcara[NILAI UNIK (DIHITUNG)],0),2),\"\")","v":""},{"$f":"IFERROR(INDEX(PengaturJadwalAcara[],MATCH($H$18&\"|\"&ROW(A1),PengaturJadwalAcara[NILAI UNIK (DIHITUNG)],0),3),\"\")","v":""}]
[{"$nulls":4},{"$f":"'Jangka Waktu'!E16","v":"09:15:00"},{"$f":"IFERROR(INDEX(PengaturJadwalAcara[],MATCH(DATEVALUE(NilaiTanggal)&JadwalHarian[[#This Row],[Waktu]],CariTanggalDanWaktu,0),3),\"\")","v":""},null,{"$f":"IFERROR(TEXT(DATEVALUE(NilaiTanggal)+3,\"d\"),\"\")","v":"9"},{"$f":"IFERROR(INDEX(PengaturJadwalAcara[],MATCH($H$18&\"|\"&ROW(A2),PengaturJadwalAcara[NILAI UNIK (DIHITUNG)],0),2),\"\")","v":""},{"$f":"IFERROR(INDEX(PengaturJadwalAcara[],MATCH($H$18&\"|\"&ROW(A2),PengaturJadwalAcara[NILAI UNIK (DIHITUNG)],0),3),\"\")","v":""}]
[null,"Hari",null,null,{"$f":"'Jangka Waktu'!E17","v":"09:30:00"},{"$f":"IFERROR(INDEX(PengaturJadwalAcara[],MATCH(DATEVALUE(NilaiTanggal)&JadwalHarian[[#This Row],[Waktu]],CariTanggalDanWaktu,0),3),\"\")","v":""},null,null,{"$f":"IFERROR(INDEX(PengaturJadwalAcara[],MATCH($H$18&\"|\"&ROW(A3),PengaturJadwalAcara[NILAI UNIK (DIHITUNG)],0),2),\"\")","v":""},{"$f":"IFERROR(INDEX(PengaturJadwalAcara[],MATCH($H$18&\"|\"&ROW(A3),PengaturJadwalAcara[NILAI UNIK (DIHITUNG)],0),3),\"\")","v":""}]
[{"$nulls":4},{"$f":"'Jangka Waktu'!E18","v":"09:45:00"},{"$f":"IFERROR(INDEX(PengaturJadwalAcara[],MATCH(DATEVALUE(NilaiTanggal)&JadwalHarian[[#This Row],[Waktu]],CariTanggalDanWaktu,0),3),\"\")","v":""},null,{"$f":"IFERROR(NilaiTanggal+3,\"\")","v":"2019-09-09"},{"$f":"IFERROR(INDEX(PengaturJadwalAcara[],MATCH($H$18&\"|\"&ROW(A4),PengaturJadwalAcara[NILAI UNIK (DIHITUNG)],0),2),\"\")","v":""},{"$f":"IFERROR(INDEX(PengaturJadwalAcara[],MATCH($H$18&\"|\"&ROW(A4),PengaturJadwalAcara[NILAI UNIK (DIHITUNG)],0),3),\"\")","v":""}]
[null,"EDIT JADWAL",null,null,{"$f":"'Jangka Waktu'!E19","v":"10:00:00"},{"$f":"IFERROR(INDEX(PengaturJadwalAcara[],MATCH(DATEVALUE(NilaiTanggal)&JadwalHarian[[#This Row],[Waktu]],CariTanggalDanWaktu,0),3),\"\")","v":"Istirahat"},null,null,{"$f":"IFERROR(INDEX(PengaturJadwalAcara[],MATCH($H$18&\"|\"&ROW(A5),PengaturJadwalAcara[NILAI UNIK (DIHITUNG)],0),2),\"\")","v":""},{"$f":"IFERROR(INDEX(PengaturJadwalAcara[],MATCH($H$18&\"|\"&ROW(A5),PengaturJadwalAcara[NILAI UNIK (DIHITUNG)],0),3),\"\")","v":""}]
[{"$nulls":4},{"$f":"'Jangka Waktu'!E20","v":"10:15:00"},{"$f":"IFERROR(INDEX(PengaturJadwalAcara[],MATCH(DATEVALUE(NilaiTanggal)&JadwalHarian[[#This Row],[Waktu]],CariTanggalDanWaktu,0),3),\"\")","v":""},null,null,{"$f":"IFERROR(INDEX(PengaturJadwalAcara[],MATCH($H$18&\"|\"&ROW(A6),PengaturJadwalAcara[NILAI UNIK (DIHITUNG)],0),2),\"\")","v":""},{"$f":"IFERROR(INDEX(PengaturJadwalAcara[],MATCH($H$18&\"|\"&ROW(A6),PengaturJadwalAcara[NILAI UNIK (DIHITUNG)],0),3),\"\")","v":""}]
[null,"Pilih untuk mengedit jangka waktu",null,null,{"$f":"'Jangka Waktu'!E21","v":"10:30:00"},{"$f":"IFERROR(INDEX(PengaturJadwalAcara[],MATCH(DATEVALUE(NilaiTanggal)&JadwalHarian[[#This Row],[Waktu]],CariTanggalDanWaktu,0),3),\"\")","v":""},null,{"$f":"IFERROR(TEXT(DATEVALUE(NilaiTanggal)+4,\"dddd\"),\"\")","v":"Selasa"},{"$f":"IFERROR(INDEX(PengaturJadwalAcara[],MATCH($H$24&\"|\"&ROW(A1),PengaturJadwalAcara[NILAI UNIK (DIHITUNG)],0),2),\"\")","v":""},{"$f":"IFERROR(INDEX(PengaturJadwalAcara[],MATCH($H$24&\"|\"&ROW(A1),PengaturJadwalAcara[NILAI UNIK (DIHITUNG)],0),3),\"\")","v":""}]
[{"$nulls":4},{"$f":"'Jangka Waktu'!E22","v":"10:45:00"},{"$f":"IFERROR(INDEX(PengaturJadwalAcara[],MATCH(DATEVALUE(NilaiTanggal)&JadwalHarian[[#This Row],[Waktu]],CariTanggalDanWaktu,0),3),\"\")","v":""},null,{"$f":"IFERROR(TEXT(DATEVALUE(NilaiTanggal)+4,\"d\"),\"\")","v":"10"},{"$f":"IFERROR(INDEX(PengaturJadwalAcara[],MATCH($H$24&\"|\"&ROW(A2),PengaturJadwalAcara[NILAI UNIK (DIHITUNG)],0),2),\"\")","v":""},{"$f":"IFERROR(INDEX(PengaturJadwalAcara[],MATCH($H$24&\"|\"&ROW(A2),PengaturJadwalAcara[NILAI UNIK (DIHITUNG)],0),3),\"\")","v":""}]
[null,"Pilih untuk menambahkan acara baru",null,null,{"$f":"'Jangka Waktu'!E23","v":"11:00:00"},{"$f":"IFERROR(INDEX(PengaturJadwalAcara[],MATCH(DATEVALUE(NilaiTanggal)&JadwalHarian[[#This Row],[Waktu]],CariTanggalDanWaktu,0),3),\"\")","v":""},null,null,{"$f":"IFERROR(INDEX(PengaturJadwalAcara[],MATCH($H$24&\"|\"&ROW(A3),PengaturJadwalAcara[NILAI UNIK (DIHITUNG)],0),2),\"\")","v":""},{"$f":"IFERROR(INDEX(PengaturJadwalAcara[],MATCH($H$24&\"|\"&ROW(A3),PengaturJadwalAcara[NILAI UNIK (DIHITUNG)],0),3),\"\")","v":""}]
[{"$nulls":4},{"$f":"'Jangka Waktu'!E24","v":"11:15:00"},{"$f":"IFERROR(INDEX(PengaturJadwalAcara[],MATCH(DATEVALUE(NilaiTanggal)&JadwalHarian[[#This Row],[Waktu]],CariTanggalDanWaktu,0),3),\"\")","v":""},null,{"$f":"IFERROR(NilaiTanggal+4,\"\")","v":"2019-09-10"},{"$f":"IFERROR(INDEX(PengaturJadwalAcara[],MATCH($H$24&\"|\"&ROW(A4),PengaturJadwalAcara[NILAI UNIK (DIHITUNG)],0),2),\"\")","v":""},{"$f":"IFERROR(INDEX(PengaturJadwalAcara[],MATCH($H$24&\"|\"&ROW(A4),PengaturJadwalAcara[NILAI UNIK (DIHITUNG)],0),3),\"\")","v":""}]
[null,"SOROT DALAM JADWAL:",null,null,{"$f":"'Jangka Waktu'!E25","v":"11:30:00"},{"$f":"IFERROR(INDEX(PengaturJadwalAcara[],MATCH(DATEVALUE(NilaiTanggal)&JadwalHarian[[#This Row],[Waktu]],CariTanggalDanWaktu,0),3),\"\")","v":""},null,null,{"$f":"IFERROR(INDEX(PengaturJadwalAcara[],MATCH($H$24&\"|\"&ROW(A5),PengaturJadwalAcara[NILAI UNIK (DIHITUNG)],0),2),\"\")","v":""},{"$f":"IFERROR(INDEX(PengaturJadwalAcara[],MATCH($H$24&\"|\"&ROW(A5),PengaturJadwalAcara[NILAI UNIK (DIHITUNG)],0),3),\"\")","v":""}]
[null,"Istirahat",null,null,{"$f":"'Jangka Waktu'!E26","v":"11:45:00"},{"$f":"IFERROR(INDEX(PengaturJadwalAcara[],MATCH(DATEVALUE(NilaiTanggal)&JadwalHarian[[#This Row],[Waktu]],CariTanggalDanWaktu,0),3),\"\")","v":""},null,{"$f":"IFERROR(TEXT(DATEVALUE(NilaiTanggal)+5,\"dddd\"),\"\")","v":"Rabu"},{"$f":"IFERROR(INDEX(PengaturJadwalAcara[],MATCH($H$29&\"|\"&ROW(A1),PengaturJadwalAcara[NILAI UNIK (DIHITUNG)],0),2),\"\")","v":""},{"$f":"IFERROR(INDEX(PengaturJadwalAcara[],MATCH($H$29&\"|\"&ROW(A1),PengaturJadwalAcara[NILAI UNIK (DIHITUNG)],0),3),\"\")","v":""}]
[{"$nulls":4},{"$f":"'Jangka Waktu'!E27","v":"12:00:00"},{"$f":"IFERROR(INDEX(PengaturJadwalAcara[],MATCH(DATEVALUE(NilaiTanggal)&JadwalHarian[[#This Row],[Waktu]],CariTanggalDanWaktu,0),3),\"\")","v":"Makan siang"},null,{"$f":"IFERROR(TEXT(DATEVALUE(NilaiTanggal)+5,\"d\"),\"\")","v":"11"},{"$f":"IFERROR(INDEX(PengaturJadwalAcara[],MATCH($H$29&\"|\"&ROW(A2),PengaturJadwalAcara[NILAI UNIK (DIHITUNG)],0),2),\"\")","v":""},{"$f":"IFERROR(INDEX(PengaturJadwalAcara[],MATCH($H$29&\"|\"&ROW(A2),PengaturJadwalAcara[NILAI UNIK (DIHITUNG)],0),3),\"\")","v":""}]
[{"$nulls":4},{"$f":"'Jangka Waktu'!E28","v":"12:15:00"},{"$f":"IFERROR(INDEX(PengaturJadwalAcara[],MATCH(DATEVALUE(NilaiTanggal)&JadwalHarian[[#This Row],[Waktu]],CariTanggalDanWaktu,0),3),\"\")","v":""},null,null,{"$f":"IFERROR(INDEX(PengaturJadwalAcara[],MATCH($H$29&\"|\"&ROW(A3),PengaturJadwalAcara[NILAI UNIK (DIHITUNG)],0),2),\"\")","v":""},{"$f":"IFERROR(INDEX(PengaturJadwalAcara[],MATCH($H$29&\"|\"&ROW(A3),PengaturJadwalAcara[NILAI UNIK (DIHITUNG)],0),3),\"\")","v":""}]
[{"$nulls":4},{"$f":"'Jangka Waktu'!E29","v":"12:30:00"},{"$f":"IFERROR(INDEX(PengaturJadwalAcara[],MATCH(DATEVALUE(NilaiTanggal)&JadwalHarian[[#This Row],[Waktu]],CariTanggalDanWaktu,0),3),\"\")","v":""},null,{"$f":"IFERROR(NilaiTanggal+5,\"\")","v":"2019-09-11"},{"$f":"IFERROR(INDEX(PengaturJadwalAcara[],MATCH($H$29&\"|\"&ROW(A4),PengaturJadwalAcara[NILAI UNIK (DIHITUNG)],0),2),\"\")","v":""},{"$f":"IFERROR(INDEX(PengaturJadwalAcara[],MATCH($H$29&\"|\"&ROW(A4),PengaturJadwalAcara[NILAI UNIK (DIHITUNG)],0),3),\"\")","v":""}]
[{"$nulls":4},{"$f":"'Jangka Waktu'!E30","v":"12:45:00"},{"$f":"IFERROR(INDEX(PengaturJadwalAcara[],MATCH(DATEVALUE(NilaiTanggal)&JadwalHarian[[#This Row],[Waktu]],CariTanggalDanWaktu,0),3),\"\")","v":""},null,null,{"$f":"IFERROR(INDEX(PengaturJadwalAcara[],MATCH($H$29&\"|\"&ROW(A5),PengaturJadwalAcara[NILAI UNIK (DIHITUNG)],0),2),\"\")","v":""},{"$f":"IFERROR(INDEX(PengaturJadwalAcara[],MATCH($H$29&\"|\"&ROW(A5),PengaturJadwalAcara[NILAI UNIK (DIHITUNG)],0),3),\"\")","v":""}]
[{"$nulls":4},{"$f":"'Jangka Waktu'!E31","v":"13:00:00"},{"$f":"IFERROR(INDEX(PengaturJadwalAcara[],MATCH(DATEVALUE(NilaiTanggal)&JadwalHarian[[#This Row],[Waktu]],CariTanggalDanWaktu,0),3),\"\")","v":""},null,{"$f":"IFERROR(TEXT(DATEVALUE(NilaiTanggal)+6,\"dddd\"),\"\")","v":"Kamis"},{"$f":"IFERROR(INDEX(PengaturJadwalAcara[],MATCH($H$34&\"|\"&ROW(A1),PengaturJadwalAcara[NILAI UNIK (DIHITUNG)],0),2),\"\")","v":""},{"$f":"IFERROR(INDEX(PengaturJadwalAcara[],MATCH($H$34&\"|\"&ROW(A1),PengaturJadwalAcara[NILAI UNIK (DIHITUNG)],0),3),\"\")","v":""}]
[{"$nulls":4},{"$f":"'Jangka Waktu'!E32","v":"13:15:00"},{"$f":"IFERROR(INDEX(PengaturJadwalAcara[],MATCH(DATEVALUE(NilaiTanggal)&JadwalHarian[[#This Row],[Waktu]],CariTanggalDanWaktu,0),3),\"\")","v":""},null,{"$f":"IFERROR(TEXT(DATEVALUE(NilaiTanggal)+6,\"d\"),\"\")","v":"12"},{"$f":"IFERROR(INDEX(PengaturJadwalAcara[],MATCH($H$34&\"|\"&ROW(A2),PengaturJadwalAcara[NILAI UNIK (DIHITUNG)],0),2),\"\")","v":""},{"$f":"IFERROR(INDEX(PengaturJadwalAcara[],MATCH($H$34&\"|\"&ROW(A2),PengaturJadwalAcara[NILAI UNIK (DIHITUNG)],0),3),\"\")","v":""}]
[{"$nulls":4},{"$f":"'Jangka Waktu'!E33","v":"13:30:00"},{"$f":"IFERROR(INDEX(PengaturJadwalAcara[],MATCH(DATEVALUE(NilaiTanggal)&JadwalHarian[[#This Row],[Waktu]],CariTanggalDanWaktu,0),3),\"\")","v":"Hubungi perusahaan"},null,null,{"$f":"IFERROR(INDEX(PengaturJadwalAcara[],MATCH($H$34&\"|\"&ROW(A3),PengaturJadwalAcara[NILAI UNIK (DIHITUNG)],0),2),\"\")","v":""},{"$f":"IFERROR(INDEX(PengaturJadwalAcara[],MATCH($H$34&\"|\"&ROW(A3),PengaturJadwalAcara[NILAI UNIK (DIHITUNG)],0),3),\"\")","v":""}]
[{"$nulls":4},{"$f":"'Jangka Waktu'!E34","v":"13:45:00"},{"$f":"IFERROR(INDEX(PengaturJadwalAcara[],MATCH(DATEVALUE(NilaiTanggal)&JadwalHarian[[#This Row],[Waktu]],CariTanggalDanWaktu,0),3),\"\")","v":""},null,{"$f":"IFERROR(NilaiTanggal+6,\"\")","v":"2019-09-12"},{"$f":"IFERROR(INDEX(PengaturJadwalAcara[],MATCH($H$34&\"|\"&ROW(A4),PengaturJadwalAcara[NILAI UNIK (DIHITUNG)],0),2),\"\")","v":""},{"$f":"IFERROR(INDEX(PengaturJadwalAcara[],MATCH($H$34&\"|\"&ROW(A4),PengaturJadwalAcara[NILAI UNIK (DIHITUNG)],0),3),\"\")","v":""}]
[{"$nulls":4},{"$f":"'Jangka Waktu'!E35","v":"14:00:00"},{"$f":"IFERROR(INDEX(PengaturJadwalAcara[],MATCH(DATEVALUE(NilaiTanggal)&JadwalHarian[[#This Row],[Waktu]],CariTanggalDanWaktu,0),3),\"\")","v":""},null,null,{"$f":"IFERROR(INDEX(PengaturJadwalAcara[],MATCH($H$34&\"|\"&ROW(A5),PengaturJadwalAcara[NILAI UNIK (DIHITUNG)],0),2),\"\")","v":""},{"$f":"IFERROR(INDEX(PengaturJadwalAcara[],MATCH($H$34&\"|\"&ROW(A5),PengaturJadwalAcara[NILAI UNIK (DIHITUNG)],0),3),\"\")","v":""}]
[{"$nulls":4},{"$f":"'Jangka Waktu'!E36","v":"14:15:00"},{"$f":"IFERROR(INDEX(PengaturJadwalAcara[],MATCH(DATEVALUE(NilaiTanggal)&JadwalHarian[[#This Row],[Waktu]],CariTanggalDanWaktu,0),3),\"\")","v":""}]
[{"$nulls":4},{"$f":"'Jangka Waktu'!E37","v":"14:30:00"},{"$f":"IFERROR(INDEX(PengaturJadwalAcara[],MATCH(DATEVALUE(NilaiTanggal)&JadwalHarian[[#This Row],[Waktu]],CariTanggalDanWaktu,0),3),\"\")","v":""}]
[{"$nulls":4},{"$f":"'Jangka Waktu'!E38","v":"14:45:00"},{"$f":"IFERROR(INDEX(PengaturJadwalAcara[],MATCH(DATEVALUE(NilaiTanggal)&JadwalHarian[[#This Row],[Waktu]],CariTanggalDanWaktu,0),3),\"\")","v":""}]
[{"$nulls":4},{"$f":"'Jangka Waktu'!E39","v":"15:00:00"},{"$f":"IFERROR(INDEX(PengaturJadwalAcara[],MATCH(DATEVALUE(NilaiTanggal)&JadwalHarian[[#This Row],[Waktu]],CariTanggalDanWaktu,0),3),\"\")","v":"Istirahat"}]
[{"$nulls":4},{"$f":"'Jangka Waktu'!E40","v":"15:15:00"},{"$f":"IFERROR(INDEX(PengaturJadwalAcara[],MATCH(DATEVALUE(NilaiTanggal)&JadwalHarian[[#This Row],[Waktu]],CariTanggalDanWaktu,0),3),\"\")","v":""}]
[{"$nulls":4},{"$f":"'Jangka Waktu'!E41","v":"15:30:00"},{"$f":"IFERROR(INDEX(PengaturJadwalAcara[],MATCH(DATEVALUE(NilaiTanggal)&JadwalHarian[[#This Row],[Waktu]],CariTanggalDanWaktu,0),3),\"\")","v":""}]
[{"$nulls":4},{"$f":"'Jangka Waktu'!E42","v":"15:45:00"},{"$f":"IFERROR(INDEX(PengaturJadwalAcara[],MATCH(DATEVALUE(NilaiTanggal)&JadwalHarian[[#This Row],[Waktu]],CariTanggalDanWaktu,0),3),\"\")","v":""}]
[{"$nulls":4},{"$f":"'Jangka Waktu'!E43","v":"16:00:00"},{"$f":"IFERROR(INDEX(PengaturJadwalAcara[],MATCH(DATEVALUE(NilaiTanggal)&JadwalHarian[[#This Row],[Waktu]],CariTanggalDanWaktu,0),3),\"\")","v":""}]
[{"$nulls":4},{"$f":"'Jangka Waktu'!E44","v":"16:15:00"},{"$f":"IFERROR(INDEX(PengaturJadwalAcara[],MATCH(DATEVALUE(NilaiTanggal)&JadwalHarian[[#This Row],[Waktu]],CariTanggalDanWaktu,0),3),\"\")","v":""}]
[{"$nulls":4},{"$f":"'Jangka Waktu'!E45","v":"16:30:00"},{"$f":"IFERROR(INDEX(PengaturJadwalAcara[],MATCH(DATEVALUE(NilaiTanggal)&JadwalHarian[[#This Row],[Waktu]],CariTanggalDanWaktu,0),3),\"\")","v":""}]
[{"$nulls":4},{"$f":"'Jangka Waktu'!E46","v":"16:45:00"},{"$f":"IFERROR(INDEX(PengaturJadwalAcara[],MATCH(DATEVALUE(NilaiTanggal)&JadwalHarian[[#This Row],[Waktu]],CariTanggalDanWaktu,0),3),\"\")","v":""}]
[{"$nulls":4},{"$f":"'Jangka Waktu'!E47","v":"17:00:00"},{"$f":"IFERROR(INDEX(PengaturJadwalAcara[],MATCH(DATEVALUE(NilaiTanggal)&JadwalHarian[[#This Row],[Waktu]],CariTanggalDanWaktu,0),3),\"\")","v":"Pulang"}]
[{"$nulls":4},{"$f":"'Jangka Waktu'!E48","v":"17:15:00"},{"$f":"IFERROR(INDEX(PengaturJadwalAcara[],MATCH(DATEVALUE(NilaiTanggal)&JadwalHarian[[#This Row],[Waktu]],CariTanggalDanWaktu,0),3),\"\")","v":""}]
[{"$nulls":4},{"$f":"'Jangka Waktu'!E49","v":"17:30:00"},{"$f":"IFERROR(INDEX(PengaturJadwalAcara[],MATCH(DATEVALUE(NilaiTanggal)&JadwalHarian[[#This Row],[Waktu]],CariTanggalDanWaktu,0),3),\"\")","v":""}]
[{"$nulls":4},{"$f":"'Jangka Waktu'!E50","v":"17:45:00"},{"$f":"IFERROR(INDEX(PengaturJadwalAcara[],MATCH(DATEVALUE(NilaiTanggal)&JadwalHarian[[#This Row],[Waktu]],CariTanggalDanWaktu,0),3),\"\")","v":""}]
[{"$nulls":4},{"$f":"'Jangka Waktu'!E51","v":"18:00:00"},{"$f":"IFERROR(INDEX(PengaturJadwalAcara[],MATCH(DATEVALUE(NilaiTanggal)&JadwalHarian[[#This Row],[Waktu]],CariTanggalDanWaktu,0),3),\"\")","v":"Latihan sepak bola"}]
[{"$nulls":4},{"$f":"'Jangka Waktu'!E52","v":"18:15:00"},{"$f":"IFERROR(INDEX(PengaturJadwalAcara[],MATCH(DATEVALUE(NilaiTanggal)&JadwalHarian[[#This Row],[Waktu]],CariTanggalDanWaktu,0),3),\"\")","v":""}]
[{"$nulls":4},{"$f":"'Jangka Waktu'!E53","v":"18:30:00"},{"$f":"IFERROR(INDEX(PengaturJadwalAcara[],MATCH(DATEVALUE(NilaiTanggal)&JadwalHarian[[#This Row],[Waktu]],CariTanggalDanWaktu,0),3),\"\")","v":""}]
[{"$nulls":4},{"$f":"'Jangka Waktu'!E54","v":"18:45:00"},{"$f":"IFERROR(INDEX(PengaturJadwalAcara[],MATCH(DATEVALUE(NilaiTanggal)&JadwalHarian[[#This Row],[Waktu]],CariTanggalDanWaktu,0),3),\"\")","v":""}]
[{"$nulls":4},{"$f":"'Jangka Waktu'!E55","v":"19:00:00"},{"$f":"IFERROR(INDEX(PengaturJadwalAcara[],MATCH(DATEVALUE(NilaiTanggal)&JadwalHarian[[#This Row],[Waktu]],CariTanggalDanWaktu,0),3),\"\")","v":""}]
[{"$nulls":4},{"$f":"'Jangka Waktu'!E56","v":"19:15:00"},{"$f":"IFERROR(INDEX(PengaturJadwalAcara[],MATCH(DATEVALUE(NilaiTanggal)&JadwalHarian[[#This Row],[Waktu]],CariTanggalDanWaktu,0),3),\"\")","v":""}]
[{"$nulls":4},{"$f":"'Jangka Waktu'!E57","v":"19:30:00"},{"$f":"IFERROR(INDEX(PengaturJadwalAcara[],MATCH(DATEVALUE(NilaiTanggal)&JadwalHarian[[#This Row],[Waktu]],CariTanggalDanWaktu,0),3),\"\")","v":""}]
[{"$nulls":4},{"$f":"'Jangka Waktu'!E58","v":"19:45:00"},{"$f":"IFERROR(INDEX(PengaturJadwalAcara[],MATCH(DATEVALUE(NilaiTanggal)&JadwalHarian[[#This Row],[Waktu]],CariTanggalDanWaktu,0),3),\"\")","v":""}]
[{"$nulls":4},{"$f":"'Jangka Waktu'!E59","v":"20:00:00"},{"$f":"IFERROR(INDEX(PengaturJadwalAcara[],MATCH(DATEVALUE(NilaiTanggal)&JadwalHarian[[#This Row],[Waktu]],CariTanggalDanWaktu,0),3),\"\")","v":""}]
[{"$nulls":4},{"$f":"'Jangka Waktu'!E60","v":"20:15:00"},{"$f":"IFERROR(INDEX(PengaturJadwalAcara[],MATCH(DATEVALUE(NilaiTanggal)&JadwalHarian[[#This Row],[Waktu]],CariTanggalDanWaktu,0),3),\"\")","v":""}]
[{"$nulls":4},{"$f":"'Jangka Waktu'!E61","v":"20:30:00"},{"$f":"IFERROR(INDEX(PengaturJadwalAcara[],MATCH(DATEVALUE(NilaiTanggal)&JadwalHarian[[#This Row],[Waktu]],CariTanggalDanWaktu,0),3),\"\")","v":""}]
[{"$nulls":4},{"$f":"'Jangka Waktu'!E62","v":"20:45:00"},{"$f":"IFERROR(INDEX(PengaturJadwalAcara[],MATCH(DATEVALUE(NilaiTanggal)&JadwalHarian[[#This Row],[Waktu]],CariTanggalDanWaktu,0),3),\"\")","v":""}]
[{"$nulls":4},{"$f":"'Jangka Waktu'!E63","v":"21:00:00"},{"$f":"IFERROR(INDEX(PengaturJadwalAcara[],MATCH(DATEVALUE(NilaiTanggal)&JadwalHarian[[#This Row],[Waktu]],CariTanggalDanWaktu,0),3),\"\")","v":""}]
[{"$nulls":4},{"$f":"'Jangka Waktu'!E64","v":""},{"$f":"IFERROR(INDEX(PengaturJadwalAcara[],MATCH(DATEVALUE(NilaiTanggal)&JadwalHarian[[#This Row],[Waktu]],CariTanggalDanWaktu,0),3),\"\")","v":""}]
[{"$nulls":4},{"$f":"'Jangka Waktu'!E65","v":""},{"$f":"IFERROR(INDEX(PengaturJadwalAcara[],MATCH(DATEVALUE(NilaiTanggal)&JadwalHarian[[#This Row],[Waktu]],CariTanggalDanWaktu,0),3),\"\")","v":""}]
[{"$nulls":4},{"$f":"'Jangka Waktu'!E66","v":""},{"$f":"IFERROR(INDEX(PengaturJadwalAcara[],MATCH(DATEVALUE(NilaiTanggal)&JadwalHarian[[#This Row],[Waktu]],CariTanggalDanWaktu,0),3),\"\")","v":""}]
[{"$nulls":4},{"$f":"'Jangka Waktu'!E67","v":""},{"$f":"IFERROR(INDEX(PengaturJadwalAcara[],MATCH(DATEVALUE(NilaiTanggal)&JadwalHarian[[#This Row],[Waktu]],CariTanggalDanWaktu,0),3),\"\")","v":""}]
[{"$nulls":4},{"$f":"'Jangka Waktu'!E68","v":""},{"$f":"IFERROR(INDEX(PengaturJadwalAcara[],MATCH(DATEVALUE(NilaiTanggal)&JadwalHarian[[#This Row],[Waktu]],CariTanggalDanWaktu,0),3),\"\")","v":""}]
[{"$nulls":4},{"$f":"'Jangka Waktu'!E69","v":""},{"$f":"IFERROR(INDEX(PengaturJadwalAcara[],MATCH(DATEVALUE(NilaiTanggal)&JadwalHarian[[#This Row],[Waktu]],CariTanggalDanWaktu,0),3),\"\")","v":""}]
[{"$nulls":4},{"$f":"'Jangka Waktu'!E70","v":""},{"$f":"IFERROR(INDEX(PengaturJadwalAcara[],MATCH(DATEVALUE(NilaiTanggal)&JadwalHarian[[#This Row],[Waktu]],CariTanggalDanWaktu,0),3),\"\")","v":""}]
[{"$nulls":4},{"$f":"'Jangka Waktu'!E71","v":""},{"$f":"IFERROR(INDEX(PengaturJadwalAcara[],MATCH(DATEVALUE(NilaiTanggal)&JadwalHarian[[#This Row],[Waktu]],CariTanggalDanWaktu,0),3),\"\")","v":""}]
[{"$nulls":4},{"$f":"'Jangka Waktu'!E72","v":""},{"$f":"IFERROR(INDEX(PengaturJadwalAcara[],MATCH(DATEVALUE(NilaiTanggal)&JadwalHarian[[#This Row],[Waktu]],CariTanggalDanWaktu,0),3),\"\")","v":""}]
[{"$nulls":4},{"$f":"'Jangka Waktu'!E73","v":""},{"$f":"IFERROR(INDEX(PengaturJadwalAcara[],MATCH(DATEVALUE(NilaiTanggal)&JadwalHarian[[#This Row],[Waktu]],CariTanggalDanWaktu,0),3),\"\")","v":""}]
[{"$nulls":4},{"$f":"'Jangka Waktu'!E74","v":""},{"$f":"IFERROR(INDEX(PengaturJadwalAcara[],MATCH(DATEVALUE(NilaiTanggal)&JadwalHarian[[#This Row],[Waktu]],CariTanggalDanWaktu,0),3),\"\")","v":""}]
[{"$nulls":4},{"$f":"'Jangka Waktu'!E75","v":""},{"$f":"IFERROR(INDEX(PengaturJadwalAcara[],MATCH(DATEVALUE(NilaiTanggal)&JadwalHarian[[#This Row],[Waktu]],CariTanggalDanWaktu,0),3),\"\")","v":""}]

{"sheet":"Penjadwal Acara","index":1,"n_rows":15,"n_cols":8,"rows_kept":15,"merged":[[1,1,4,2],[5,1,6,2],[7,1,7,2]]}
[null,"Penjadwal Acara"]
[null,{"$f":"DAY(NilaiTanggal)","v":6},null,null,"TANGGAL","WAKTU","DESKRIPSI","NILAI UNIK (DIHITUNG)"]
[{"$nulls":4},{"$f":"TODAY()","v":"2019-09-06"},"06:00:00","Bangun",{"$f":"PengaturJadwalAcara[[#This Row],[TANGGAL]]&\"|\"&COUNTIF($E$3:E3,E3)","v":"43714|1"}]
[{"$nulls":4},{"$f":"TODAY()","v":"2019-09-06"},"06:30:00","Mandi",{"$f":"PengaturJadwalAcara[[#This Row],[TANGGAL]]&\"|\"&COUNTIF($E$3:E4,E4)","v":"43714|2"}]
[{"$nulls":4},"2019-09-06","07:30:00","Berangkat kerja",{"$f":"PengaturJadwalAcara[[#This Row],[TANGGAL]]&\"|\"&COUNTIF($E$3:E5,E5)","v":"43714|3"}]
[null,{"$f":"TEXT(NilaiTanggal,\"dddd\")","v":"Jumat"},null,null,"2019-09-06","08:00:00","Mulai sif kerja",{"$f":"PengaturJadwalAcara[[#This Row],[TANGGAL]]&\"|\"&COUNTIF($E$3:E6,E6)","v":"43714|4"}]
[{"$nulls":4},"2019-09-06","10:00:00","Istirahat",{"$f":"PengaturJadwalAcara[[#This Row],[TANGGAL]]&\"|\"&COUNTIF($E$3:E7,E7)","v":"43714|5"}]
[null,{"$f":"NilaiTanggal","v":"06 SEPTEMBER 2019"},null,null,"2019-09-06","12:00:00","Makan siang",{"$f":"PengaturJadwalAcara[[#This Row],[TANGGAL]]&\"|\"&COUNTIF($E$3:E8,E8)","v":"43714|6"}]
[{"$nulls":4},"2019-09-06","13:00:00","Kembali bekerja",{"$f":"PengaturJadwalAcara[[#This Row],[TANGGAL]]&\"|\"&COUNTIF($E$3:E9,E9)","v":"43714|7"}]
[null,"Pilih untuk mengedit jangka waktu",null,null,"2019-09-06","13:30:00","Hubungi perusahaan",{"$f":"PengaturJadwalAcara[[#This Row],[TANGGAL]]&\"|\"&COUNTIF($E$3:E10,E10)","v":"43714|8"}]
[{"$nulls":4},"2019-09-06","15:00:00","Istirahat",{"$f":"PengaturJadwalAcara[[#This Row],[TANGGAL]]&\"|\"&COUNTIF($E$3:E11,E11)","v":"43714|9"}]
[null,"Pilih untuk menampilkan Jadwal Harian",null,null,"2019-09-06","17:00:00","Pulang",{"$f":"PengaturJadwalAcara[[#This Row],[TANGGAL]]&\"|\"&COUNTIF($E$3:E12,E12)","v":"43714|10"}]
[{"$nulls":4},"2019-09-06","18:00:00","Latihan sepak bola",{"$f":"PengaturJadwalAcara[[#This Row],[TANGGAL]]&\"|\"&COUNTIF($E$3:E13,E13)","v":"43714|11"}]
[{"$nulls":4},{"$f":"TODAY()+1","v":"2019-09-07"},"06:30:00","Sarapan",{"$f":"PengaturJadwalAcara[[#This Row],[TANGGAL]]&\"|\"&COUNTIF($E$3:E14,E14)","v":"43715|1"}]
[{"$nulls":4},{"$f":"TODAY()+1","v":"2019-09-07"},"07:30:00","Berangkat kerja",{"$f":"PengaturJadwalAcara[[#This Row],[TANGGAL]]&\"|\"&COUNTIF($E$3:E15,E15)","v":"43715|2"}]

{"sheet":"Jangka Waktu","index":2,"n_rows":75,"n_cols":5,"rows_kept":75,"merged":[[1,1,1,2],[9,1,9,2]]}
[null,"Jangka Waktu"]
[null,"EDIT TABEL WAKTU",null,null,"Waktu"]
[{"$nulls":4},{"$f":"Waktu_mulai","v":"06:00:00"}]
[null,"Waktu Mulai","06:00:00",null,{"$f":"IFERROR(IF($E3+Penambahan>WaktuSelesai,\"\",$E3+Penambahan),\"\")","v":"06:15:00"}]
[{"$nulls":4},"06:30:00"]
[null,"Interval","15 MENIT",null,"06:45:00"]
[{"$nulls":4},"07:00:00"]
[null,"Waktu selesai","21:00:00",null,"07:15:00"]
[{"$nulls":4},"07:30:00"]
[null,"TAMPILKAN JADWAL",null,null,"07:45:00"]
[{"$nulls":4},"08:00:00"]
[null,"Pilih untuk Menampilkan Jadwal Harian",null,null,"08:15:00"]
[{"$nulls":4},"08:30:00"]
[null,"Pilih untuk menambahkan acara baru",null,null,"08:45:00"]
[{"$nulls":4},"09:00:00"]
[{"$nulls":4},"09:15:00"]
[{"$nulls":4},"09:30:00"]
[{"$nulls":4},"09:45:00"]
[{"$nulls":4},"10:00:00"]
[{"$nulls":4},"10:15:00"]
[{"$nulls":4},"10:30:00"]
[{"$nulls":4},"10:45:00"]
[{"$nulls":4},"11:00:00"]
[{"$nulls":4},"11:15:00"]
[{"$nulls":4},"11:30:00"]
[{"$nulls":4},"11:45:00"]
[{"$nulls":4},"12:00:00"]
[{"$nulls":4},"12:15:00"]
[{"$nulls":4},"12:30:00"]
[{"$nulls":4},"12:45:00"]
[{"$nulls":4},"13:00:00"]
[{"$nulls":4},"13:15:00"]
[{"$nulls":4},"13:30:00"]
[{"$nulls":4},"13:45:00"]
[{"$nulls":4},"14:00:00"]
[{"$nulls":4},{"$f":"IFERROR(IF($E35+Penambahan>WaktuSelesai,\"\",$E35+Penambahan),\"\")","v":"14:15:00"}]
[{"$nulls":4},"14:30:00"]
[{"$nulls":4},"14:45:00"]
[{"$nulls":4},"15:00:00"]
[{"$nulls":4},"15:15:00"]
[{"$nulls":4},"15:30:00"]
[{"$nulls":4},"15:45:00"]
[{"$nulls":4},"16:00:00"]
[{"$nulls":4},"16:15:00"]
[{"$nulls":4},"16:30:00"]
[{"$nulls":4},"16:45:00"]
[{"$nulls":4},"17:00:00"]
[{"$nulls":4},"17:15:00"]
[{"$nulls":4},"17:30:00"]
[{"$nulls":4},"17:45:00"]
[{"$nulls":4},"18:00:00"]
[{"$nulls":4},"18:15:00"]
[{"$nulls":4},"18:30:00"]
[{"$nulls":4},"18:45:00"]
[{"$nulls":4},"19:00:00"]
[{"$nulls":4},"19:15:00"]
[{"$nulls":4},"19:30:00"]
[{"$nulls":4},"19:45:00"]
[{"$nulls":4},"20:00:00"]
[{"$nulls":4},"20:15:00"]
[{"$nulls":4},"20:30:00"]
[{"$nulls":4},"20:45:00"]
[{"$nulls":4},"21:00:00"]
[{"$nulls":4},""]
[{"$nulls":4},""]
[{"$nulls":4},""]
[{"$nulls":4},""]
[{"$nulls":4},{"$f":"IFERROR(IF($E67+Penambahan>WaktuSelesai,\"\",$E67+Penambahan),\"\")","v":""}]
[{"$nulls":4},""]
[{"$nulls":4},""]
[{"$nulls":4},""]
[{"$nulls":4},""]
[{"$nulls":4},""]
[{"$nulls":4},""]
[{"$nulls":4},""]